bitfinex/quotes_ETHUSD_20251117
["timestamp","ask_amount","ask_price","bid_price","bid_amount"]
[1763385005263,0.405504,3184.8,3184.2,0.4525]
[1763385005465,0.69343851,3184.8,3184.7,0.477]
[1763385005703,1.36599264,3185.3,3184.7,0.477]
[1763385005704,0.53235682,3185.4,3184.7,0.9295]
[1763385005909,0.28810813,3185.3,3184.9,0.477]
[1763385006080,0.45641807,3185.3,3184.9,0.477]
[1763385006280,0.45641807,3185.3,3184.1,0.1923]
[1763385006281,0.16830994,3185.3,3184.1,0.1923]
[1763385006606,0.28833591,3185.4,3184.2,0.4525]
[1763385006817,0.32757621,3185.5,3184.2,0.4525]
[1763385006986,0.28833591,3185.5,3185.4,0.477]
[1763385007166,0.28833591,3185.5,3185.4,0.6643]
[1763385007371,0.69383991,3185.5,3185.4,0.6643]
[1763385007599,1.47859747,3185.5,3185.4,0.6643]
[1763385008123,1.47859747,3185.5,3185.4,0.477]
[1763385008329,1.47859747,3185.5,3185.1,0.1873]
[1763385008330,0.405504,3185.4,3185.1,0.1873]
[1763385008622,0.69383991,3185.4,3185.1,0.1873]
[1763385008775,0.03924277,3185.3,3185.1,0.1873]
[1763385009293,0.44474677,3185.3,3185.2,0.477]
[1763385009492,0.95276247,3185.3,3185.2,0.477]
[1763385010214,0.95276247,3185.3,3185.2,0.9295]
[1763385010806,0.69383991,3185.3,3185.2,0.9295]
[1763385011903,0.28833591,3185.3,3185.2,0.9295]
[1763385012274,1.35972127,3185.4,3185.2,0.9295]
[1763385012473,1.07138536,3185.4,3185.3,0.9295]
[1763385012686,1.36107437,3185.4,3185.3,0.9295]
[1763385012888,1.74994668,3185.4,3185.3,0.9295]
[1763385013299,1.34444268,3185.4,3185.3,0.9295]
[1763385013502,1.38368421,3185.4,3185.3,0.477]
[1763385014006,1.38368421,3185.4,3185.3,0.9295]
[1763385014207,1.34444268,3185.4,3185.3,0.9295]
[1763385015515,1.34444268,3185.4,3185.1,0.1873]
[1763385015714,1.17241442,3185.3,3184.9,0.4525]
[1763385015920,0.32893301,3185.2,3184.9,0.4525]
[1763385016386,1.17241442,3185.3,3185.1,0.477]
[1763385016592,0.99481437,3185.2,3184.9,0.4525]
[1763385016793,0.28968901,3185.1,3184.8,0.1873]
[1763385017191,0.28968901,3185.1,3184.5,0.4756]
[1763385017192,0.44475046,3185.0,3184.5,0.4756]
[1763385017398,0.69519301,3185.0,3184.5,0.4756]
[1763385017712,0.28968901,3184.9,3184.5,0.4756]
[1763385017914,0.5093863,3184.9,3184.5,0.4756]
[1763385018228,0.28968901,3184.8,3184.5,0.4756]
[1763385018431,0.21969729,3184.9,3184.5,0.4756]
[1763385018432,0.95557037,3184.9,3184.8,0.4886]
[1763385018622,0.28968901,3184.9,3184.8,0.4886]
[1763385018816,0.28968901,3185.1,3184.8,0.9642]
[1763385019128,0.4688359,3185.0,3184.8,0.4756]
[1763385019317,0.28968901,3184.9,3184.1,0.1933]
[1763385019830,0.28968901,3184.9,3184.8,0.4886]
[1763385020031,0.32752572,3184.9,3184.2,0.4756]
[1763385020192,0.83589855,3184.7,3184.2,0.4756]
[1763385020398,0.4688359,3184.6,3184.2,0.4756]
[1763385020731,0.17914689,3185.0,3184.6,0.4886]
[1763385020943,0.29047602,3184.9,3184.7,0.4756]
[1763385021152,0.29047602,3184.8,3184.7,0.4756]
[1763385021321,0.29047602,3184.9,3184.7,0.4756]
[1763385021643,0.29047602,3184.8,3184.7,0.4756]
[1763385021849,0.29047602,3184.9,3184.7,0.4756]
[1763385022154,0.4700395,3184.8,3184.7,0.4756]
[1763385022346,0.4692395,3184.8,3184.7,0.9642]
[1763385022549,0.29047602,3184.8,3184.7,0.9642]
[1763385023321,0.95973623,3184.8,3184.7,0.9642]
[1763385024353,0.95973623,3184.8,3184.7,0.4886]
[1763385024546,1.79563478,3184.8,3184.7,0.4886]
[1763385024747,2.08670954,3184.8,3184.7,0.9642]
[1763385025719,1.25081099,3184.8,3184.7,0.9642]
[1763385028478,2.36592376,3184.8,3184.7,0.9642]
[1763385030553,1.72651099,3184.8,3184.1,0.6714]
[1763385030852,0.8391918,3184.5,3184.1,0.6714]
[1763385031043,0.95973623,3184.4,3184.2,0.4781]
[1763385031243,0.95973623,3184.3,3184.2,0.4781]
[1763385031756,0.95973623,3184.3,3184.2,0.9367]
[1763385037779,0.29047602,3184.3,3184.2,0.9367]
[1763385043486,0.29047602,3184.3,3184.2,0.4586]
[1763385043985,0.29047602,3184.3,3184.2,0.9367]
[1763385044587,2.08642803,3184.3,3184.1,0.006]
[1763385044792,1.21223535,3184.2,3184.1,0.006]
[1763385044957,2.50902715,3184.2,3184.1,0.006]
[1763385045289,2.95761979,3184.2,3184.1,0.006]
[1763385045497,2.91836347,3184.2,3184.1,0.006]
[1763385046192,2.91376347,3184.2,3184.1,0.4646]
[1763385047695,3.24051979,3184.2,3184.1,0.006]
[1763385047892,3.20126347,3184.2,3184.1,0.006]
[1763385048097,2.91376347,3184.2,3184.1,0.006]
[1763385048300,3.24131979,3184.2,3184.1,0.006]
[1763385048497,2.36287167,3184.2,3184.1,0.006]
[1763385049001,2.91433442,3184.2,3184.1,0.9427]
[1763385049196,2.70649162,3184.2,3184.1,0.9427]
[1763385049397,2.70649162,3184.2,3184.1,0.4646]
[1763385049597,2.99479162,3184.2,3184.1,0.006]
[1763385050144,3.03404794,3184.2,3184.1,0.006]
[1763385050328,3.03404794,3184.2,3183.1,0.2039]
[1763385050330,3.03404794,3184.2,3181.1,0.005]
[1763385050331,0.1626,3182.7,3181.1,0.005]
[1763385050645,0.405504,3181.5,3181.2,0.1748]
[1763385050794,0.405504,3181.5,3181.2,0.6529]
[1763385050795,0.29047602,3181.4,3181.2,0.6529]
[1763385051019,0.66926021,3181.3,3181.2,0.1748]
[1763385051224,0.90699264,3182.0,3181.2,0.1748]
[1763385051415,0.90699264,3182.0,3181.4,0.4586]
[1763385051416,0.29050555,3181.9,3181.4,0.4586]
[1763385051621,0.95984423,3181.9,3181.4,0.4586]
[1763385051829,0.95984423,3181.9,3181.8,0.4586]
[1763385051830,0.66933868,3181.9,3181.8,0.4586]
[1763385052037,0.90699264,3182.0,3181.8,0.4586]
[1763385052038,0.66933868,3182.0,3181.8,0.4586]
[1763385052194,1.50910143,3182.4,3181.9,0.9367]
[1763385052391,0.95948378,3182.3,3181.9,0.9367]
[1763385052596,0.2901451,3182.2,3181.9,0.9367]
[1763385053331,0.66933868,3182.3,3181.2,0.1748]
[1763385053543,0.66933868,3182.4,3181.6,0.4781]
[1763385053729,0.66933868,3182.5,3181.6,0.4781]
[1763385053927,0.66933868,3182.5,3182.4,0.4586]
[1763385054227,1.67321693,3183.3,3182.4,0.9367]
[1763385054228,0.03927112,3183.0,3182.4,0.9367]
[1763385054442,0.03927112,3183.0,3182.4,0.4586]
[1763385054595,0.28987179,3183.2,3182.9,0.4586]
[1763385054811,0.92036747,3183.2,3182.9,0.4586]
[1763385055411,0.66784855,3183.3,3183.1,0.6334]
[1763385055611,1.1189224,3183.8,3183.2,0.9367]
[1763385055612,0.66784855,3183.5,3183.2,0.9367]
[1763385055842,0.66784855,3183.7,3183.3,0.4781]
[1763385056048,0.30340479,3184.1,3183.6,0.4586]
[1763385056049,0.67284855,3183.9,3183.6,0.4586]
[1763385056341,0.4757,3183.7,3182.3,0.1748]
[1763385056539,0.4757,3183.7,3182.5,0.4781]
[1763385056540,0.90699264,3183.3,3182.5,0.4781]
[1763385056749,1.57484119,3183.3,3182.5,0.4781]
[1763385056928,1.57484119,3183.3,3182.5,0.3712]
[1763385057416,0.002,3183.2,3182.3,0.1748]
[1763385057658,0.15768412,3183.1,3182.3,0.1748]
[1763385057955,0.03927112,3183.0,3182.3,0.1748]
[1763385059553,0.03927112,3183.0,3182.2,0.0679]
[1763385059554,0.6391,3182.9,3182.2,0.0679]
[1763385059724,0.32905201,3182.8,3182.2,0.0679]
[1763385059923,0.25429932,3182.7,3182.2,0.0679]
[1763385060120,0.03927606,3182.6,3181.2,0.1748]
[1763385060452,0.90699264,3182.5,3181.2,0.1748]
[1763385060652,7.40619158,3182.2,3181.2,0.6399]
[1763385060844,0.70684932,3182.1,3181.2,0.6399]
[1763385061031,1.51815341,3182.1,3181.3,0.4651]
[1763385061231,2.38586382,3182.1,3181.2,0.1748]
[1763385061446,0.90699264,3181.7,3181.1,0.006]
[1763385061644,0.0392884,3181.6,3181.1,0.006]
[1763385061847,0.16138481,3181.5,3181.1,0.006]
[1763385062060,0.16138481,3181.5,3181.1,0.1808]
[1763385062685,0.03929087,3181.4,3181.1,0.1808]
[1763385062840,0.16138481,3181.5,3181.1,0.1808]
[1763385063041,0.16138481,3181.5,3181.1,0.006]
[1763385063862,0.49819087,3181.4,3181.1,0.006]
[1763385064179,0.4838,3181.2,3181.1,0.006]
[1763385064347,0.8289519,3181.5,3181.1,0.006]
[1763385064674,0.16138481,3181.5,3181.1,0.1808]
[1763385065366,0.4838,3181.2,3181.1,0.006]
[1763385065567,0.03929087,3181.4,3181.1,0.006]
[1763385066471,0.889304,3181.2,3181.1,0.006]
[1763385066780,1.85937191,3181.2,3181.1,0.006]
[1763385067093,1.45386791,3181.2,3181.1,0.006]
[1763385067264,0.4589,3181.4,3181.1,0.006]
[1763385067472,0.405504,3181.4,3181.1,0.006]
[1763385068187,0.16138481,3181.5,3181.1,0.006]
[1763385068386,0.4838,3181.2,3181.1,0.006]
[1763385068701,0.9427,3181.2,3181.1,0.006]
[1763385068854,0.4838,3181.2,3181.1,0.006]
[1763385069649,0.82505279,3181.5,3181.1,0.006]
[1763385069863,0.61948481,3181.5,3181.1,0.006]
[1763385070066,0.03929087,3181.4,3181.1,0.006]
[1763385070298,0.61948481,3181.5,3181.1,0.006]
[1763385070299,0.16058481,3181.5,3181.1,0.006]
[1763385071002,0.16058481,3181.5,3181.1,0.1808]
[1763385071506,0.03929087,3181.4,3181.1,0.1808]
[1763385071894,0.03929087,3181.4,3181.1,0.006]
[1763385072886,0.16058481,3181.5,3181.1,0.006]
[1763385073490,0.03929087,3181.4,3181.1,0.006]
[1763385073867,0.4838,3181.2,3181.1,0.006]
[1763385074281,0.9427,3181.2,3181.1,0.006]
[1763385074507,1.10734589,3181.2,3181.1,0.006]
[1763385074870,0.64844589,3181.2,3181.1,0.006]
[1763385075506,0.66518638,3181.4,3181.1,0.006]
[1763385075704,0.4838,3181.2,3181.1,0.006]
[1763385076279,0.03929211,3181.3,3181.1,0.006]
[1763385076602,0.4838,3181.2,3181.1,0.006]
[1763385076809,0.66518638,3181.3,3181.1,0.006]
[1763385076972,0.16572542,3181.3,3181.1,0.006]
[1763385077392,0.8309118,3181.3,3181.1,0.006]
[1763385077831,0.03929334,3181.2,3181.1,0.006]
[1763385078009,0.70447972,3181.2,3181.1,0.006]
[1763385078210,1.53596269,3181.2,3181.1,0.006]
[1763385078722,10.48976917,3181.2,3181.1,0.006]
[1763385078892,2.12228425,3181.2,3181.1,0.006]
[1763385079092,4.16320665,3181.2,3181.1,0.001]
[1763385079295,0.90699264,3181.1,3180.7,0.09083496]
[1763385079544,1.53805359,3181.0,3180.7,0.09083496]
[1763385079707,0.909691,3180.9,3180.7,0.09083496]
[1763385079908,0.66518638,3180.8,3180.7,0.09083496]
[1763385080115,0.70448466,3180.8,3180.7,0.09083496]
[1763385080330,1.45375253,3180.8,3180.7,0.09083496]
[1763385080506,3.43376909,3180.8,3180.7,0.09083496]
[1763385080711,4.45121815,3180.8,3180.7,0.09083496]
[1763385082533,11.18988981,3180.8,3180.1,0.005]
[1763385082694,0.83368787,3180.3,3180.1,0.005]
[1763385082898,0.66518638,3180.2,3180.1,0.005]
[1763385083227,1.95847425,3180.2,3180.1,0.005]
[1763385083429,2.76504358,3180.2,3180.1,0.005]
[1763385083946,3.22744358,3180.2,3180.1,0.005]
[1763385084109,2.76504358,3180.2,3180.1,0.005]
[1763385084311,4.3783331,3180.2,3180.1,0.005]
[1763385084831,3.63294758,3180.2,3180.1,0.005]
[1763385085255,0.99381157,3180.2,3180.1,0.4958]
[1763385085596,0.99381157,3180.2,3180.1,1.1509]
[1763385085597,0.66518638,3180.2,3180.1,1.1509]
[1763385085864,2.23328562,3181.4,3180.1,1.1509]
[1763385085865,0.83333703,3180.9,3180.1,1.1509]
[1763385086043,1.11100232,3181.1,3180.4,0.4908]
[1763385086044,0.66682077,3180.8,3180.4,0.4908]
[1763385086239,0.66682077,3180.8,3180.2,0.4803]
[1763385086240,0.66682077,3180.7,3180.2,0.4803]
[1763385086578,0.83333703,3181.1,3181.0,0.4908]
[1763385086731,1.50114568,3181.1,3181.0,0.4908]
[1763385087276,0.95791392,3181.1,3181.0,0.4908]
[1763385087571,0.9972085,3181.1,3181.0,0.4659]
[1763385087926,0.95791392,3181.1,3181.0,0.4659]
[1763385088149,1.79351597,3181.1,3181.0,0.4659]
[1763385088355,0.95791392,3181.1,3181.0,0.4659]
[1763385089091,0.66780865,3181.1,3181.0,0.9308]
[1763385089246,0.67011249,3181.1,3181.0,0.9308]
[1763385089590,0.83652365,3181.6,3181.0,0.9308]
[1763385089864,0.67011426,3181.5,3181.4,0.4659]
[1763385090075,0.67011426,3181.5,3181.1,0.6397]
[1763385090230,0.83652365,3181.9,3181.4,0.4659]
[1763385090432,0.96067278,3181.8,3181.5,0.4659]
[1763385090737,0.83652365,3181.9,3181.5,0.4659]
[1763385090738,0.66990355,3181.7,3181.5,0.4659]
[1763385090954,0.66990355,3181.6,3181.5,0.4649]
[1763385091355,0.66910355,3181.6,3181.5,0.9308]
[1763385092502,0.70839195,3181.6,3181.1,0.1748]
[1763385092653,0.83652365,3181.7,3181.5,0.4659]
[1763385093154,0.83652365,3181.7,3180.1,0.1798]
[1763385093155,0.74259149,3181.6,3180.1,0.1798]
[1763385093349,0.3107,3181.3,3180.5,0.4649]
[1763385093589,1.12711514,3181.3,3180.5,0.4649]
[1763385093905,0.29059149,3181.2,3180.5,0.4649]
[1763385094054,0.29059149,3181.2,3181.1,0.4659]
[1763385094959,0.29059149,3181.2,3180.7,0.4649]
[1763385095673,0.29059149,3181.2,3181.1,0.6407]
[1763385095848,0.83652365,3181.4,3181.1,0.6407]
[1763385096052,0.29049661,3181.3,3181.2,0.4659]
[1763385096271,1.12701151,3181.3,3180.6,0.001]
[1763385096482,0.3297812,3181.2,3180.6,0.001]
[1763385096849,0.3297812,3181.2,3180.6,0.4659]
[1763385097051,0.29048786,3181.2,3180.6,0.001]
[1763385097259,0.03929458,3181.1,3180.6,0.001]
[1763385097577,0.83652365,3181.0,3180.6,0.001]
[1763385097891,0.29048786,3180.9,3180.6,0.001]
[1763385098191,0.29048786,3181.0,3180.6,0.001]
[1763385098763,1.57811151,3181.0,3180.6,0.001]
[1763385098951,0.29048786,3180.9,3180.6,0.001]
[1763385099153,0.26891138,3181.0,3180.6,0.001]
[1763385099349,0.29047335,3181.0,3180.6,0.001]
[1763385100493,0.29047335,3181.1,3180.6,0.001]
[1763385100854,0.83652365,3181.5,3181.0,0.6407]
[1763385101052,0.002,3181.6,3181.0,0.6407]
[1763385101053,0.29050583,3181.4,3181.1,0.4659]
[1763385101296,0.002,3181.6,3181.3,0.4659]
[1763385102771,0.452,3181.4,3180.6,0.001]
[1763385103102,0.329828,3181.3,3180.6,0.001]
[1763385103400,0.53677317,3181.3,3180.6,0.4659]
[1763385103564,0.66926522,3181.2,3180.6,0.4659]
[1763385103898,0.03929458,3181.1,3180.6,0.4659]
[1763385104284,0.03929458,3181.1,3181.0,0.4659]
[1763385104603,0.03929334,3181.2,3181.0,0.4659]
[1763385105161,0.03929334,3181.2,3180.6,0.001]
[1763385105665,0.66926522,3181.1,3180.6,0.001]
[1763385105875,0.452,3180.7,3180.6,0.001]
[1763385106087,0.66926522,3180.9,3180.6,0.001]
[1763385106271,0.452,3180.7,3180.6,0.001]
[1763385108212,0.32980984,3180.8,3180.6,0.001]
[1763385108520,0.16377102,3180.7,3180.6,0.001]
[1763385108677,0.20307054,3180.7,3180.6,0.001]
[1763385108877,0.1875,3180.9,3180.6,0.001]
[1763385109103,0.67789705,3180.9,3180.6,0.001]
[1763385109508,0.1875,3180.9,3180.6,0.001]
[1763385109723,0.6386,3180.9,3180.6,0.001]
[1763385110078,0.1875,3181.0,3180.6,0.001]
[1763385110475,0.6386,3181.0,3180.6,0.001]
[1763385111179,0.452,3180.7,3180.6,0.001]
[1763385111693,0.49039705,3180.9,3180.6,0.001]
[1763385112117,0.1875,3181.0,3180.6,0.001]
[1763385112482,0.29062169,3181.1,3180.9,0.4659]
[1763385112711,0.9601387,3181.3,3180.6,0.4659]
[1763385112981,0.29062169,3181.2,3180.6,0.4659]
[1763385113213,0.9601387,3181.4,3180.6,0.4659]
[1763385113418,0.29062169,3181.3,3180.6,0.4659]
[1763385113725,0.002,3181.6,3181.2,0.4659]
[1763385114030,0.002,3181.6,3180.6,0.4659]
[1763385114031,0.54676086,3181.6,3181.1,0.1748]
[1763385114317,0.03928964,3181.5,3181.1,0.1748]
[1763385114525,0.99881504,3181.5,3181.1,0.1748]
[1763385114690,0.29080839,3181.4,3180.8,0.4649]
[1763385114889,0.03849211,3181.3,3180.8,0.4649]
[1763385115620,0.3293005,3181.3,3180.8,0.4649]
[1763385115838,0.03849211,3181.3,3180.8,0.4649]
[1763385116028,0.29080839,3181.3,3180.8,0.4649]
[1763385116308,0.9603254,3181.4,3180.8,0.4649]
[1763385116513,0.29080839,3181.3,3180.8,0.4649]
[1763385116712,0.9603254,3181.4,3180.8,0.4649]
[1763385116883,0.29080839,3181.3,3180.8,0.4649]
[1763385117216,0.29080839,3181.4,3180.8,0.4649]
[1763385117517,0.29080839,3181.4,3181.2,0.4659]
[1763385117699,0.29080839,3181.4,3181.3,0.4665]
[1763385117903,0.29080839,3181.5,3181.3,0.4665]
[1763385118826,0.4976,3181.4,3181.1,0.1748]
[1763385119032,0.29080839,3181.3,3181.1,0.1748]
[1763385119197,0.03929334,3181.2,3181.1,0.1748]
[1763385119526,0.29080839,3181.3,3181.1,0.1748]
[1763385119725,0.66951701,3181.5,3181.1,0.6413]
[1763385119726,0.03929334,3181.2,3181.1,0.6413]
[1763385120301,0.03929334,3181.2,3180.6,0.001]
[1763385120302,0.53689334,3181.2,3180.6,0.001]
[1763385120502,0.66951701,3181.4,3181.1,0.4665]
[1763385120826,0.29117622,3181.3,3181.1,0.4665]
[1763385121027,0.29117622,3181.4,3181.1,0.4665]
[1763385121233,0.96069323,3181.4,3181.1,0.4665]
[1763385121529,0.96069323,3181.4,3181.2,0.1748]
[1763385121530,0.29117622,3181.3,3181.2,0.1748]
[1763385121717,0.29117622,3181.4,3181.3,0.4665]
[1763385121921,0.29117622,3181.4,3181.3,0.9243]
[1763385122226,0.67151701,3181.6,3181.3,0.9243]
[1763385122430,0.002,3181.6,3181.5,0.4665]
[1763385122797,0.2933335,3181.6,3181.5,0.4665]
[1763385123006,0.002,3181.6,3181.5,0.4665]
[1763385123341,0.79093752,3181.6,3181.2,0.1748]
[1763385123495,0.4996,3181.6,3181.2,0.1748]
[1763385123695,1.16911701,3181.6,3181.2,0.1748]
[1763385123915,0.4996,3181.6,3181.2,0.1748]
[1763385124117,0.2286,3181.3,3180.6,0.001]
[1763385124334,0.03929334,3181.2,3180.6,0.4588]
[1763385124539,0.29129031,3181.1,3180.6,0.001]
[1763385124835,0.4976,3180.7,3180.6,0.001]
[1763385125007,2.33584069,3180.7,3180.6,0.001]
[1763385125334,4.7531003,3180.7,3180.6,0.001]
[1763385125538,4.71996283,3180.7,3180.6,0.001]
[1763385126035,0.405504,3180.6,3180.5,0.001]
[1763385126208,3.7970387,3180.6,3180.5,0.001]
[1763385126414,2.12142228,3180.6,3180.5,0.001]
[1763385126612,3.38877515,3180.6,3180.5,0.001]
[1763385126816,4.46578213,3180.6,3180.5,0.001]
[1763385127012,3.19842926,3180.6,3180.5,0.001]
[1763385127423,3.23773002,3180.6,3180.5,0.001]
[1763385127806,3.23717669,3180.6,3180.5,0.001]
[1763385128537,4.14416933,3180.6,3180.5,0.001]
[1763385128721,4.70403134,3180.6,3180.5,0.001]
[1763385128922,5.97138421,3180.6,3180.5,0.001]
[1763385130122,4.29576779,3180.6,3180.5,0.001]
[1763385130322,5.9660958,3180.6,3180.5,0.001]
[1763385131133,12.4560958,3180.6,3180.5,0.001]
[1763385131334,0.405504,3180.4,3180.1,0.005]
[1763385131543,1.32978549,3180.2,3180.1,0.005]
[1763385131846,3.20498224,3180.2,3180.1,0.005]
[1763385132052,4.52546773,3180.2,3180.1,0.005]
[1763385132429,3.69058224,3180.2,3180.1,0.005]
[1763385132919,3.72988794,3180.2,3180.1,0.005]
[1763385133136,4.56477343,3180.2,3180.1,0.005]
[1763385133336,3.72988794,3180.2,3180.1,0.005]
[1763385133832,5.40021595,3180.2,3180.1,0.005]
[1763385134140,3.72988794,3180.2,3180.1,0.005]
[1763385134353,3.72988794,3180.2,3179.1,0.005]
[1763385134354,4.61749664,3180.1,3179.1,0.005]
[1763385134650,0.827204,3179.2,3179.1,0.005]
[1763385134828,1.11849431,3179.2,3179.1,0.005]
[1763385135047,1.64341237,3179.2,3179.1,0.005]
[1763385135230,2.31453958,3179.2,3179.1,0.005]
[1763385135541,3.305,3178.6,3177.1,0.005]
[1763385135725,1.078404,3178.2,3177.1,0.1848]
[1763385136043,3.43341416,3178.2,3177.2,0.4578]
[1763385136213,2.47099664,3178.2,3177.2,0.4578]
[1763385136912,1.98539664,3178.2,3177.2,0.4578]
[1763385137114,0.4856,3178.5,3177.5,0.4578]
[1763385137312,0.405504,3178.7,3177.6,0.4642]
[1763385137528,1.35854786,3178.7,3177.6,0.4642]
[1763385137734,1.60702865,3178.6,3177.4,0.4642]
[1763385137903,0.18288479,3178.6,3177.7,0.4642]
[1763385138100,0.4703,3178.9,3178.1,0.644]
[1763385138325,0.03932301,3178.8,3178.1,0.644]
[1763385138527,0.03932301,3178.8,3178.1,0.1798]
[1763385138806,0.03932301,3178.8,3178.7,0.4874]
[1763385139143,0.0393193,3179.1,3178.2,0.4642]
[1763385139439,0.4703,3179.2,3178.1,0.1798]
[1763385139648,0.0393193,3179.1,3178.1,0.644]
[1763385140015,0.405504,3179.2,3178.1,0.644]
[1763385140203,0.405504,3179.2,3178.1,0.1798]
[1763385140204,0.405504,3179.0,3178.1,0.1798]
[1763385140544,0.405504,3178.8,3178.1,0.005]
[1763385141007,0.405504,3178.8,3178.1,0.1798]
[1763385141205,0.405504,3178.6,3178.1,0.005]
[1763385141433,0.03932672,3178.5,3178.1,0.005]
[1763385141670,0.405504,3178.8,3178.1,0.1798]
[1763385142165,0.875804,3178.8,3178.1,0.005]
[1763385142469,0.91512701,3178.8,3178.1,0.005]
[1763385142643,0.405504,3178.6,3178.1,0.005]
[1763385142840,0.4984,3178.2,3178.1,0.005]
[1763385143045,0.405504,3178.5,3178.1,0.005]
[1763385143244,0.17827966,3178.4,3178.1,0.005]
[1763385143669,0.875804,3178.5,3178.1,0.005]
[1763385143965,0.03932796,3178.4,3178.1,0.005]
[1763385144136,0.903904,3178.2,3178.1,0.005]
[1763385144339,1.374204,3178.2,3178.1,0.005]
[1763385144538,0.405504,3178.2,3178.1,0.005]
[1763385144932,0.50962425,3178.7,3178.1,0.005]
[1763385145258,3.305,3179.1,3178.1,0.005]
[1763385145259,0.03932548,3178.6,3178.2,0.1748]
[1763385145665,0.03932548,3178.6,3178.5,0.4874]
[1763385145858,0.03932177,3178.9,3178.5,0.4874]
[1763385146058,0.1971807,3178.9,3178.5,0.4874]
[1763385146447,0.03932177,3178.9,3178.5,0.4874]
[1763385146776,0.03932177,3178.9,3178.2,0.639]
[1763385147553,0.405504,3179.0,3178.8,0.4516]
[1763385147835,2.44243112,3179.4,3178.3,0.4576]
[1763385147836,0.405504,3179.2,3178.3,0.4576]
[1763385148035,0.6936508,3179.2,3178.3,0.4576]
[1763385148449,1.35711434,3179.2,3178.3,0.4576]
[1763385148637,0.18388143,3179.1,3178.3,0.4576]
[1763385148855,0.18388143,3179.1,3178.2,0.1748]
[1763385148856,0.44482454,3179.0,3178.2,0.1748]
[1763385149176,0.44482454,3179.0,3178.1,0.005]
[1763385149377,0.2603,3178.2,3178.1,0.005]
[1763385149556,4.21199264,3178.6,3178.1,0.005]
[1763385149886,0.90289926,3178.5,3178.1,0.005]
[1763385150040,0.4817,3178.4,3178.1,0.005]
[1763385150984,0.42119926,3178.5,3178.1,0.005]
[1763385151191,0.42119926,3178.5,3178.2,0.1748]
[1763385151497,0.94631565,3178.8,3178.1,0.005]
[1763385151498,0.66450893,3178.7,3178.1,0.005]
[1763385151642,1.49716828,3179.0,3178.1,0.6374]
[1763385151841,0.28854807,3178.9,3178.1,0.6374]
[1763385152068,0.28854807,3178.9,3178.2,0.4576]
[1763385152241,0.66450893,3179.0,3178.2,0.4576]
[1763385152642,0.52388143,3179.1,3178.2,0.4576]
[1763385152643,1.18839036,3179.1,3178.2,0.4576]
[1763385152843,0.66450893,3179.0,3178.9,0.4516]
[1763385153064,0.34,3179.1,3178.2,0.4576]
[1763385153283,0.3793193,3179.1,3179.0,0.4516]
[1763385153478,1.33270163,3179.1,3179.0,0.4516]
[1763385153653,0.6681927,3179.1,3179.0,0.4516]
[1763385154059,1.33270163,3179.1,3179.0,0.4516]
[1763385154369,1.33553842,3179.1,3178.7,0.4576]
[1763385154580,0.95421912,3179.0,3178.7,0.4576]
[1763385154753,0.03932177,3178.9,3178.7,0.4576]
[1763385154949,0.03932177,3178.9,3178.1,0.1798]
[1763385154950,0.03932177,3178.9,3178.8,0.4576]
[1763385155263,0.7038307,3178.9,3178.8,0.4516]
[1763385155462,0.03932177,3178.9,3178.8,0.4516]
[1763385155671,0.7038307,3178.9,3178.8,0.4516]
[1763385155881,0.66450893,3179.0,3178.8,0.4516]
[1763385156091,0.7038307,3178.9,3178.8,0.4516]
[1763385156392,0.66450893,3178.9,3178.8,0.4516]
[1763385156599,0.99381653,3178.9,3178.8,0.4516]
[1763385156782,0.99381653,3178.9,3178.1,0.1798]
[1763385156783,9.57587708,3178.9,3178.1,0.1798]
[1763385156986,1.7896261,3178.8,3178.1,0.6374]
[1763385157191,0.21291541,3178.9,3178.1,0.6374]
[1763385157192,0.66450893,3178.7,3178.1,0.6374]
[1763385157364,0.66450893,3178.6,3178.2,0.4576]
[1763385157565,0.66450893,3178.8,3178.2,0.4576]
[1763385157897,0.95461233,3178.7,3178.2,0.4576]
[1763385158072,0.66450893,3178.6,3178.2,0.4576]
[1763385158278,0.66450893,3178.8,3178.2,0.4576]
[1763385158478,0.66450893,3178.7,3178.2,0.4576]
[1763385158677,0.66450893,3178.6,3178.2,0.4576]
[1763385158876,0.66450893,3178.5,3178.2,0.4576]
[1763385159081,1.11021247,3179.0,3178.2,0.4576]
[1763385159082,0.66450893,3178.7,3178.2,0.4576]
[1763385159271,0.66450893,3178.6,3178.4,0.4516]
[1763385159468,0.83513134,3178.9,3178.2,0.4576]
[1763385159671,0.95928517,3178.8,3178.5,0.4516]
[1763385160003,0.95928517,3178.7,3178.5,0.4516]
[1763385160167,0.66896831,3178.6,3178.2,0.4576]
[1763385160364,0.66896831,3178.5,3178.2,0.4576]
[1763385160564,0.66816831,3178.8,3178.4,0.4516]
[1763385160786,0.29038647,3178.7,3178.2,0.4576]
[1763385160966,0.29038647,3178.8,3178.2,0.4576]
[1763385161163,0.29038647,3178.7,3178.2,0.4576]
[1763385161368,0.29038647,3178.8,3178.2,0.4576]
[1763385161782,0.29038647,3178.8,3178.7,0.4516]
[1763385162407,8.69885462,3178.8,3178.1,0.005]
[1763385162611,8.69885462,3178.8,3178.1,0.1798]
[1763385162612,0.83707271,3178.4,3178.1,0.1798]
[1763385162773,0.32971567,3178.3,3178.1,0.6374]
[1763385163101,0.29038647,3178.2,3178.1,0.6374]
[1763385163305,0.29038647,3178.2,3178.1,0.1798]
[1763385163605,0.29038647,3178.2,3178.1,0.6314]
[1763385163807,0.3297169,3178.2,3178.1,0.6314]
[1763385163978,0.3297169,3178.2,3178.1,0.005]
[1763385164183,0.74138647,3178.2,3178.1,0.005]
[1763385164378,2.53635977,3178.2,3178.1,0.005]
[1763385164701,0.89923239,3178.2,3178.1,0.005]
[1763385164905,0.93856282,3178.2,3178.1,0.005]
[1763385165490,0.44823239,3178.2,3178.1,0.005]